Cogmind - Beta 9.5 @@@ ROGUE MODE // 2020.04.06 @ 20:39:36 Player: Barleymor Result: Destroyed by S-27 Virus with Autogun Performance ------------- Evolutions (5) 2500 Regions Visited (11) 2200 Robots Destroyed (82) 410 Value Destroyed (2757) 2757 Prototype IDs (7) 140 Alien Tech Used (0) 0 Bonus (22) 22 TOTAL SCORE: 8029 Bonus ------- High Alert Combat Kills 22 Cogmind --------- Core Integrity 0/1000 Matter 300/300 Energy 98/100 System Corruption 1% Temperature Cool (0) Movement Core (50) Location -5/Upper Caves Parts ------- > --- POWER (1) -------- (None) > --- PROPULSION (7) --- (None) > --- UTILITY (7) ------ Advanced Signal Interpreter Advanced Targeting Computer Power Shielding > --- WEAPON (2) ------- (None) > --- INVENTORY (4) ---- Neutrino Core Reinforced Fission Core Medium Storage Unit Peak State ------------ > --- POWER ------------ Reinforced Fission Core > --- PROPULSION ------- Armored Leg Armored Huge Wheel Armored Huge Wheel Nuclear Pulse Thruster Nuclear Pulse Thruster > --- UTILITY ---------- Advanced Heat Sink Improved Sensor Array Advanced Signal Interpreter Advanced Targeting Computer Improved Transmission Jammer Improved Maneuvering Thrusters Improved Medium Armor Plating > --- WEAPON ----------- Proton Cannon Magnetic Acceleration Cannon > --- INVENTORY -------- Heavy Deuterium Engine Micro Fission Core Matter Compressor Long-range Terrain Scanner [Rating: 76] Favorites ----------- Power Improved Ion Engine Engine Improved Ion Engine Power Core Light Fission Core Propulsion Aluminum Leg Treads Medium Treads Leg Aluminum Leg Wheel Armored Huge Wheel Hover Unit Improved Gravmag System Flight Unit Nuclear Pulse Thruster Utility Large Storage Unit Device Advanced Sensor Array Storage Large Storage Unit Processor Advanced Signal Interpreter Hackware Hacking Suite Protection Improved Light Armor Plating Weapon Precision Assault Rifle Energy Gun Force Rifle Energy Cannon Particle Cannon Ballistic Gun Precision Assault Rifle Ballistic Cannon Magnetic Acceleration Cannon Launcher Grenade Launcher Build | -11 -10 -9 -9 -9 -8 -8 -7 -6 -5 -5 -5 ------- Run | Scr Mat Mat Min Exi Min Mat Fac Fac Fac Upp Upp Slots Evolved 10 | . . 2 . . . 2 2 2 2 . . Power . | . . . . . . . . . . . . Propulsion 5 | . . 2 . . . . . 2 1 . . Utility 5 | . . . . . . 2 2 . 1 . . Weapon . | . . . . . . . . . . . . Parts Attached 105 | 6 1 21 . 2 . 15 7 36 8 8 1 Power 19 | 1 . 2 . . . 3 . 10 1 2 . Engine 15 | 1 . 2 . . . 3 . 8 1 . . Core 4 | . . . . . . . . 2 . 2 . Reactor . | . . . . . . . . . . . . Propulsion 31 | 2 . 10 . . . 2 1 13 2 1 . Treads 1 | . . . . . . . . 1 . . . Leg 20 | 2 . 10 . . . . . 7 . 1 . Wheel 6 | . . . . . . 2 1 1 2 . . Hover 1 | . . . . . . . . 1 . . . Flight 3 | . . . . . . . . 3 . . . Utility 29 | 1 1 1 . 2 . 3 5 8 2 5 1 Device 12 | . . . . 1 . 2 . 6 1 2 . Storage 5 | 1 1 . . 1 . . . . . 2 . Processor 4 | . . . . . . 1 3 . . . . Hackware 1 | . . . . . . . . . . . 1 Protection 7 | . . 1 . . . . 2 2 1 1 . Artifact . | . . . . . . . . . . . . Weapon 26 | 2 . 8 . . . 7 1 5 3 . . Energy Gun 3 | . . 1 . . . 1 . 1 . . . Energy Cannon 5 | . . 2 . . . . . . 3 . . Ballistic Gun 14 | 2 . 3 . . . 5 1 3 . . . Ballistic Cannon 1 | . . . . . . . . 1 . . . Launcher 3 | . . 2 . . . 1 . . . . . Special Weapon . | . . . . . . . . . . . . Impact Weapon . | . . . . . . . . . . . . Slashing Weapon . | . . . . . . . . . . . . Piercing Weapon . | . . . . . . . . . . . . Special Melee Weapon . | . . . . . . . . . . . . Unidentified Prototypes 3 | . . . . . . 1 . 2 . . . Parts Lost 42 | . . 6 . . . 1 1 16 1 16 1 Power 3 | . . 1 . . . . . 1 . 1 . Propulsion 15 | . . 2 . . . . . 7 . 6 . Utility 12 | . . . . . . . 1 3 . 7 1 Weapon 12 | . . 3 . . . 1 . 5 1 2 . Highest Loss Streak 11 | . . 2 . . . 1 1 5 1 11 1 Average Slot Usage (%) 86 | . 85 95 100 100 100 86 83 87 84 68 21 Engine 6 | . 14 10 11 11 11 8 7 5 5 1 . Leg 22 | . 28 42 44 44 44 13 . 21 5 4 . Wheel 5 | . . . . . . 11 15 4 9 7 . Flight 2 | . . . . . . . . 3 11 8 . Device 11 | . . . . 10 11 18 15 13 22 16 . Storage 6 | . 14 11 11 11 11 9 7 5 . . . Processor 8 | . . . . . . 9 15 13 11 11 11 Protection 4 | . . 8 11 . . . 6 3 4 3 5 Energy Gun 1 | . . . . . . . 3 1 . . . Energy Cannon 2 | . . 1 11 11 11 7 . . 4 3 . Ballistic Gun 10 | . 28 18 11 11 11 9 10 10 . . . Naked Turns . | . . . . . . . . . . . . Heaviest Build 49 | 13 25 31 31 31 31 38 42 41 40 49 1 Greatest Support 100 | 20 20 40 40 40 40 56 56 100 56 56 3 Greatest Overweight (x) 3 | 2 1 . . . . 1 . . . 3 . Average Overweight (x) . | . . . . . . . . . . . . Largest Inventory Capacity 12 | 6 12 10 10 10 10 10 10 10 4 4 4 Average Capacity 8 | 5 6 10 10 10 10 10 10 9 4 4 4 Most Carried 10 | 4 6 10 10 10 10 10 10 10 4 4 4 Average Carried 7 | 1 4 6 10 9 10 8 9 8 3 3 3 Final Capacity 10 | 6 10 10 10 10 10 10 10 4 4 4 4 Final Carried 10 | 2 6 10 10 10 10 10 10 4 4 3 3 Class Distribution -------------------- 60% | Mutant 35% | Scavenger-Mutant 4% | Skirmisher Dominant Class ---------------- Mutant | -10/Materials Scavenger-Mutant | -9/Materials Scavenger-Mutant | -9/Mines Scavenger-Mutant | -9/Exiles Scavenger-Mutant | -8/Mines Mutant | -8/Materials Mutant | -7/Factory Mutant | -6/Factory Skirmisher | -5/Factory Mutant | -5/Upper Caves Mutant | -5/Upper Caves Resources | -11 -10 -9 -9 -9 -8 -8 -7 -6 -5 -5 -5 ----------- Run | Scr Mat Mat Min Exi Min Mat Fac Fac Fac Upp Upp Matter Collected 3261 | 251 87 702 42 29 29 497 240 1083 53 238 10 Remotely . | . . . . . . . . . . . . Salvage Created 2980 | . 173 796 42 . . 466 248 995 53 207 . Parts 177 | . 5 61 4 . . 25 12 60 1 9 . Haulers Intercepted . | . . . . . . . . . . . . Recyclers Shooed 1 | . . . . . . . . 1 . . . Parts Field Recycled . | . . . . . . . . . . . . Retrieved Matter . | . . . . . . . . . . . . Parts Self-Destructed 11 | . . . . . . . . . . 11 . Prevented 7 | . . . . . . . . . . 7 . Kills | -11 -10 -9 -9 -9 -8 -8 -7 -6 -5 -5 -5 ------- Run | Scr Mat Mat Min Exi Min Mat Fac Fac Fac Upp Upp Combat Hostiles Destroyed 69 | . 2 25 3 . . 9 6 18 1 5 . Guns 53 | . 2 20 1 . . 6 6 18 . . . Cannons 15 | . . 4 2 . . 3 . . 1 5 . AOE 1 | . . 1 . . . . . . . . . Classes Destroyed 15 | . 2 4 . . . 3 1 5 . . . Worker 2 | . . . . . . . . 2 . . . Builder 2 | . . . . . . . . 2 . . . Tunneler 1 | . . 1 . . . . . . . . . Recycler 2 | . 1 1 . . . . . . . . . Operator 1 | . . . . . . 1 . . . . . Watcher 5 | . . 2 . . . . . 3 . . . Swarmer 27 | . . 14 3 . . . 3 4 . 3 . Grunt 19 | . 2 7 . . . 6 . 3 . 1 . Brawler 2 | . . . . . . 1 . . . 1 . Duelist 2 | . . . . . . 1 . 1 . . . Sentry 8 | . . 4 . . . 1 2 . 1 . . Demolisher 2 | . . . . . . . . 2 . . . Hunter 1 | . . . . . . . . 1 . . . Programmer 6 | . . . . . . . 1 5 . . . Assembled 2 | . . . . . . . . 2 . . . Best Kill Streak 5 | . 2 5 2 . . 3 3 4 1 3 . Combat Bots Only 5 | . 2 5 2 . . 3 3 4 1 3 . Max Kills in Single Turn 2 | . 1 2 1 . . 1 1 2 1 1 . Gunslinging 1 | . . . . . . . . 1 . . . Exploded 1 | . . 1 . . . . . . . . . Melee . | . . . . . . . . . . . . Uniques/NPCs Destroyed . | . . . . . . . . . . . . Combat | -11 -10 -9 -9 -9 -8 -8 -7 -6 -5 -5 -5 -------- Run | Scr Mat Mat Min Exi Min Mat Fac Fac Fac Upp Upp Damage Taken 8316 | . 97 1116 24 . . 717 498 2657 204 2922 81 Core 1702 | . 21 100 . . . 46 42 492 25 913 63 Absorbed by Shields 54 | . . . . . . . . 54 . . . Core Remaining (%) 82 | 100 91 . . . 75 91 94 42 . . . Volleys Fired 265 | . 14 79 4 . . 39 21 81 9 18 . Largest 2 | . 2 2 2 . . 2 2 2 2 2 . Hottest 134 | . 40 79 91 . . 96 56 108 134 128 . Shots Fired 506 | . 28 153 8 . . 65 42 162 14 34 . Gun 413 | . 28 136 4 . . 41 42 162 . . . Cannon 90 | . . 14 4 . . 24 . . 14 34 . Launcher 3 | . . 3 . . . . . . . . . Special . | . . . . . . . . . . . . Kinetic 426 | . 28 136 4 . . 41 42 148 9 18 . Thermal 42 | . . . 4 . . 24 . 14 . . . Explosive 3 | . . 3 . . . . . . . . . Electromagnetic 35 | . . 14 . . . . . . 5 16 . Robot Hit Streak 35 | . 10 11 1 . . 28 35 17 14 22 . Robot Miss Streak 8 | . 3 6 2 . . 3 1 8 . 3 . Penetration Max 1 | . . . . . . . . 1 . . . Secondary Targets 4 | . . 2 . . . . . 2 . . . Max Gunslinging Chain 1 | . . 1 . . . . . 1 . . . Shots Hit Robots 349 | . 17 86 2 . . 56 35 118 14 21 . Core Hits 159 | . 5 40 3 . . 18 13 66 3 11 . Critical Hits 7 | . . 1 1 . . 1 1 1 1 1 . Critical Kills 2 | . . 1 . . . . 1 . . . . Critical Parts Destroyed 5 | . . . 1 . . 1 . 1 1 1 . Melee Attacks . | . . . . . . . . . . . . Impact . | . . . . . . . . . . . . Slashing . | . . . . . . . . . . . . Piercing . | . . . . . . . . . . . . Sneak Attacks . | . . . . . . . . . . . . Combat Hostiles . | . . . . . . . . . . . . Follow-up Attacks . | . . . . . . . . . . . . Damage Inflicted 7491 | . 192 1582 84 . . 1077 749 2943 343 521 . Guns 5262 | . 192 936 24 . . 667 749 2694 . . . Cannons 1666 | . . 336 60 . . 410 . . 343 517 . Explosions 559 | . . 310 . . . . . 249 . . . Melee . | . . . . . . . . . . . . Ramming 4 | . . . . . . . . . . 4 . Kinetic 5574 | . 192 936 24 . . 667 749 2457 269 280 . Thermal 1208 | . . 267 60 . . 410 . 471 . . . Explosive 58 | . . 43 . . . . . 15 . . . Electromagnetic 647 | . . 336 . . . . . . 74 237 . Impact . | . . . . . . . . . . . . Slashing . | . . . . . . . . . . . . Piercing . | . . . . . . . . . . . . Highest Corruption 3 | . . . . . . . 1 3 . 1 1 Average Corruption 1 | . . . . . . . 1 1 . 1 1 Corruption Purged 3 | . . . . . . . . 3 . . . Effects 20 | . . . . . . . . 20 . . . Message Errors 5 | . . . . . . . . 5 . . . Heat Flow Errors 5 | . . . . . . . . 5 . . . Energy Discharges 4 | . . . . . . . . 4 . . . Data Loss (minor) 6 | . . . . . . . . 6 . . . Overload Shots . | . . . . . . . . . . . . Overflow Damage 263 | . . 153 . . . 18 . 88 . 4 . Projectiles 48 | . . 26 . . . 18 . . . 4 . Explosions 215 | . . 127 . . . . . 88 . . . Melee . | . . . . . . . . . . . . Knockbacks 6 | . . . . . . . . . . 6 . Impact . | . . . . . . . . . . . . Kinetic 6 | . . . . . . . . . . 6 . Secondary . | . . . . . . . . . . . . Self-Inflicted Damage 341 | . . 148 . . . . . 191 . 2 . Shots 5 | . . 2 . . . . . 3 . . . Rammed 1 | . . . . . . . . . . 1 . Targets Rammed 1 | . . . . . . . . . . 1 . Kicked . | . . . . . . . . . . . . Crushed . | . . . . . . . . . . . . Highest Temperature 393 | . . 60 72 . . 198 10 393 3 142 . Average Temperature 71 | . . 20 32 . . 85 4 98 3 54 . Received Heat Transfer 1758 | . 54 237 . . . 225 30 210 18 984 . Effects 1 | . . . . . . . . 1 . . . Matter Decay 1 | . . . . . . . . 1 . . . Siege Activations . | . . . . . . . . . . . . Robots Corrupted . | . . . . . . . . . . . . Combat Hostiles . | . . . . . . . . . . . . Parts Fried 5 | . . 4 . . . . . . . 1 . Impact Corruptions . | . . . . . . . . . . . . Robots Melted . | . . . . . . . . . . . . Combat Hostiles . | . . . . . . . . . . . . Parts Melted 1 | . . . . . . 1 . . . . . Heat Transferred 1621 | . . 250 111 . . 740 . 520 . . . Parts Sabotaged . | . . . . . . . . . . . . Parts Stolen . | . . . . . . . . . . . . Parts Stripped . | . . . . . . . . . . . . Power Chain Reactions 1 | . . 1 . . . . . . . . . Missiles Intercepted . | . . . . . . . . . . . . Alert | -11 -10 -9 -9 -9 -8 -8 -7 -6 -5 -5 -5 ------- Run | Scr Mat Mat Min Exi Min Mat Fac Fac Fac Upp Upp Peak Influence 443 | . 75 443 242 . . 216 111 439 249 . . Average Influence 148 | . 42 253 201 . . 64 40 157 226 . . Maximum Alert Level 2 | . . 2 1 . . 1 . 2 1 . . Low Security (%) 69 | 100 100 32 56 . 100 97 100 74 . . . Level 1 25 | . . 54 43 . . 2 . 20 100 . . Level 2 4 | . . 12 . . . . . 5 . . . Level 3 . | . . . . . . . . . . . . Level 4 . | . . . . . . . . . . . . Level 5 . | . . . . . . . . . . . . High Security . | . . . . . . . . . . . . Max Security . | . . . . . . . . . . . . Squads Dispatched 17 | . 1 3 . . . 1 2 9 1 . . Investigation 2 | . 1 1 . . . . . . . . . Extermination 6 | . . . . . . . 1 4 1 . . Reinforcement 8 | . . 2 . . . 1 1 4 . . . Assault 1 | . . . . . . . . 1 . . . Garrison . | . . . . . . . . . . . . Intercept . | . . . . . . . . . . . . Construction Impeded . | . . . . . . . . . . . . Haulers Reinforced . | . . . . . . . . . . . . Stealth | -11 -10 -9 -9 -9 -8 -8 -7 -6 -5 -5 -5 --------- Run | Scr Mat Mat Min Exi Min Mat Fac Fac Fac Upp Upp Distress Signals 4 | . . 2 . . . 1 . 1 . . . Communications Jammed 25 | . . . . . . . . 25 . . . Distress Signals 25 | . . . . . . . . 25 . . . Times Spotted 163 | . 3 45 4 . . 13 10 56 1 24 7 Peak Tracking Total 11 | . 3 7 3 . . 3 4 11 1 6 10 Tactical Retreats 28 | . . 7 1 . . . 1 9 . 10 . Traps | -11 -10 -9 -9 -9 -8 -8 -7 -6 -5 -5 -5 ------- Run | Scr Mat Mat Min Exi Min Mat Fac Fac Fac Upp Upp Traps Triggered 6 | . 1 1 . . . . . 4 . . . Indirectly . | . . . . . . . . . . . . Trap Hack Attempts . | . . . . . . . . . . . . Triggered . | . . . . . . . . . . . . Disarmed . | . . . . . . . . . . . . Reprogrammed . | . . . . . . . . . . . . Reused . | . . . . . . . . . . . . Traps Extracted . | . . . . . . . . . . . . Installed . | . . . . . . . . . . . . Triggered . | . . . . . . . . . . . . Machines | -11 -10 -9 -9 -9 -8 -8 -7 -6 -5 -5 -5 ---------- Run | Scr Mat Mat Min Exi Min Mat Fac Fac Fac Upp Upp Machines Disabled 15 | . . 2 . . . . . 13 . . . Max in Single Turn 4 | . . 1 . . . . . 4 . . . Garrison Access 1 | . . . . . . . . 1 . . . Machines Sabotaged . | . . . . . . . . . . . . Garrisons Compromised . | . . . . . . . . . . . . Overloaded Fab Kills . | . . . . . . . . . . . . Fab Network Shutdowns . | . . . . . . . . . . . . Hacking | -11 -10 -9 -9 -9 -8 -8 -7 -6 -5 -5 -5 --------- Run | Scr Mat Mat Min Exi Min Mat Fac Fac Fac Upp Upp Machines Accessed 8 | . 2 4 . . . 2 . . . . . Terminals 8 | . 2 4 . . . 2 . . . . . Fabricators . | . . . . . . . . . . . . Repair Stations . | . . . . . . . . . . . . Recycling Units . | . . . . . . . . . . . . Scanalyzers . | . . . . . . . . . . . . Garrison Access . | . . . . . . . . . . . . Total Hacks 11 | . 2 7 . . . 2 . . . . . Successful 7 | . 2 3 . . . 2 . . . . . Failed 4 | . . 4 . . . . . . . . . Catastrophic . | . . . . . . . . . . . . Database Lockouts . | . . . . . . . . . . . . Manual . | . . . . . . . . . . . . Terminals 11 | . 2 7 . . . 2 . . . . . Fabricators . | . . . . . . . . . . . . Repair Stations . | . . . . . . . . . . . . Recycling Units . | . . . . . . . . . . . . Scanalyzers . | . . . . . . . . . . . . Garrison Access . | . . . . . . . . . . . . Terminal Hacks 7 | . 2 3 . . . 2 . . . . . Record 2 | . . 2 . . . . . . . . . Prototype ID Bank 2 | . 2 . . . . . . . . . . Alert Level 2 | . . . . . . 2 . . . . . Locate Traps 1 | . . 1 . . . . . . . . . Fabricator Hacks . | . . . . . . . . . . . . Repair Station Hacks . | . . . . . . . . . . . . Recycling Unit Hacks . | . . . . . . . . . . . . Scanalyzer . | . . . . . . . . . . . . Garrison Access Hacks . | . . . . . . . . . . . . Unauthorized Hacks . | . . . . . . . . . . . . Terminals . | . . . . . . . . . . . . Fabricators . | . . . . . . . . . . . . Repair Stations . | . . . . . . . . . . . . Recycling Units . | . . . . . . . . . . . . Scanalyzers . | . . . . . . . . . . . . Garrison Access . | . . . . . . . . . . . . Data Cores Recovered 1 | . . . . . . 1 . . . . . Used . | . . . . . . . . . . . . Hacking Detections 4 | . . 4 . . . . . . . . . Full Trace Events . | . . . . . . . . . . . . Feedback Events . | . . . . . . . . . . . . Feedback Blocked . | . . . . . . . . . . . . Robot Schematics Acquired . | . . . . . . . . . . . . Robots Built . | . . . . . . . . . . . . Matter . | . . . . . . . . . . . . Time . | . . . . . . . . . . . . Total Robot Build Rating . | . . . . . . . . . . . . Part Schematics Acquired . | . . . . . . . . . . . . Parts Built . | . . . . . . . . . . . . Matter . | . . . . . . . . . . . . Time . | . . . . . . . . . . . . Total Part Build Rating . | . . . . . . . . . . . . Parts Repaired . | . . . . . . . . . . . . Time . | . . . . . . . . . . . . Parts Recycled . | . . . . . . . . . . . . Recycled Matter . | . . . . . . . . . . . . Retrieved Matter . | . . . . . . . . . . . . Retrieved Components . | . . . . . . . . . . . . Parts Scanalyzed . | . . . . . . . . . . . . Part Schematics Acquired . | . . . . . . . . . . . . Parts Damaged . | . . . . . . . . . . . . Bothacking | -11 -10 -9 -9 -9 -8 -8 -7 -6 -5 -5 -5 ------------ Run | Scr Mat Mat Min Exi Min Mat Fac Fac Fac Upp Upp Used RIF Installer . | . . . . . . . . . . . . Robots Hacked . | . . . . . . . . . . . . Non-combat . | . . . . . . . . . . . . Combat . | . . . . . . . . . . . . Robot Hacks Applied . | . . . . . . . . . . . . Relay Couplers Released 4 | . . . . . . . . 4 . . . Machine Destruction 4 | . . . . . . . . 4 . . . Robots Rewired . | . . . . . . . . . . . . Allies Hacked . | . . . . . . . . . . . . Hacks Repelled . | . . . . . . . . . . . . Allies | -11 -10 -9 -9 -9 -8 -8 -7 -6 -5 -5 -5 -------- Run | Scr Mat Mat Min Exi Min Mat Fac Fac Fac Upp Upp Total Allies . | . . . . . . . . . . . . Largest Group . | . . . . . . . . . . . . Highest-Rated Group . | . . . . . . . . . . . . Highest-Rated Ally . | . . . . . . . . . . . . Total Orders . | . . . . . . . . . . . . Ally Attacks . | . . . . . . . . . . . . Total Damage . | . . . . . . . . . . . . Kills . | . . . . . . . . . . . . Allies Corrupted . | . . . . . . . . . . . . Allies Melted . | . . . . . . . . . . . . Intel | -11 -10 -9 -9 -9 -8 -8 -7 -6 -5 -5 -5 ------- Run | Scr Mat Mat Min Exi Min Mat Fac Fac Fac Upp Upp Robot Analysis Total . | . . . . . . . . . . . . Derelict Logs Recovered 4 | . . . 1 . . . . . . 3 . Drone Launches . | . . . . . . . . . . . . Drone Recoveries . | . . . . . . . . . . . . Exploration | -11 -10 -9 -9 -9 -8 -8 -7 -6 -5 -5 -5 ------------- Run | Scr Mat Mat Min Exi Min Mat Fac Fac Fac Upp Upp Turns Passed 7511 | 46 295 1179 251 384 178 561 670 2756 258 843 90 Spaces Moved 4947 | 27 185 619 189 314 149 341 510 1612 157 672 172 Core 409 | 4 . . . . . . . . . 233 172 Treads . | . . . . . . . . . . . . Legs 2662 | 23 185 619 189 314 149 161 . 975 . 47 . Wheels 1396 | . . . . . . 180 510 220 94 392 . Hover . | . . . . . . . . . . . . Flight 480 | . . . . . . . . 417 63 . . Fastest Speed 37 | 50 120 120 120 120 120 100 100 37 47 50 50 Average Speed 102 | 121 125 120 120 120 120 109 100 98 78 92 50 Slowest Speed 200 | 150 150 120 120 120 120 150 100 125 100 200 50 Overloaded Moves . | . . . . . . . . . . . . Propulsion Burnouts . | . . . . . . . . . . . . Robots Hopped . | . . . . . . . . . . . . Cave-ins Triggered . | . . . . . . . . . . . . Exploration Rate (%) 36 | 2 29 61 39 74 36 24 13 46 4 78 26 Regions Visited 11 Branch Regions 5 Pre-discovered Areas 2 | . . . 1 . . . . . . 1 . Known Exits Taken 4 | . . . . . . . 1 1 1 1 . Unknown Exits Taken 7 | 1 1 1 1 1 1 1 . . . . . Scrap Searched 3 | . . . . . . . . . . 2 1 Spaces Dug . | . . . . . . . . . . . . Terrain Destroyed 157 | . . 45 . . . . . 105 . 7 . Melee . | . . . . . . . . . . . . Projectile 10 | . . . . . . . . 3 . 7 . AOE 147 | . . 45 . . . . . 102 . . . Actions | -11 -10 -9 -9 -9 -8 -8 -7 -6 -5 -5 -5 --------- Run | Scr Mat Mat Min Exi Min Mat Fac Fac Fac Upp Upp Total 6862 | 40 221 900 205 322 148 467 630 2621 276 856 176 Wait 1361 | . 17 154 13 . . 43 73 813 96 150 2 Move 4936 | 26 184 618 188 313 148 340 509 1611 156 671 172 Hop . | . . . . . . . . . . . . Pick Up 105 | 8 4 20 . 3 . 16 12 31 5 5 1 Fast Attach 10 | . 1 1 . . . 2 1 3 2 . . Attach 57 | 6 . 10 . . . 9 4 18 4 5 1 Detach 1 | . . . . . . . . . . 1 . Swap 38 | . . 10 . 2 . 4 2 15 2 3 . Drop 62 | . 1 8 . 4 . 14 8 23 2 2 . Fire 265 | . 14 79 4 . . 39 21 81 9 18 . Melee . | . . . . . . . . . . . . Ram . | . . . . . . . . . . . . Kick 1 | . . . . . . . . . . 1 . Crush . | . . . . . . . . . . . . Escape Stasis 26 | . . . . . . . . 26 . . . Rewire . | . . . . . . . . . . . . Trap . | . . . . . . . . . . . . Miscellaneous . | . . . . . . . . . . . . Route ------- -11/Scrapyard -10/Materials -9/Materials (discovered 2 exits: [*Min x2]) -9/Mines -9/Exiles (discovered 2 exits: [*Min x2]) -8/Mines -8/Materials -7/Factory -6/Factory -5/Factory -5/Upper Caves -5/Upper Caves (discovered 1 exit: [*Fac]) History --------- Turn | Location | Event 17 | -11/Scrapyard | Discovered new exit (range 16) 47 | -11/Scrapyard | Entered Materials 250 | -10/Materials | Discovered new exit (range 13) 315 | -10/Materials | Build established: Mutant 342 | -10/Materials | Entered another Materials area 342 | -9/Materials | Evolved 2 slots: Propulsion x2 1138 | -9/Materials | Discovered new exit (range 11) 1167 | -9/Materials | Build established: Scavenger-Mutant 1446 | -9/Materials | Discovered new exit (range 11) 1521 | -9/Materials | Entered Mines 1693 | -9/Mines | Learned location of Storage (-7) 1767 | -9/Mines | Deemed a non-threat by the Exiles lab entrance 1767 | -9/Mines | Discovered new exit (range 5) 1772 | -9/Mines | Entered Exiles 1803 | -9/Exiles | Discovered new exit (range 14) 1831 | -9/Exiles | Met 8R-AWN 1851 | -9/Exiles | Met EX-HEX 1909 | -9/Exiles | Met EX-DEC 1944 | -9/Exiles | Visited The Gauntlet 2134 | -9/Exiles | Discovered new exit (range 14) 2156 | -9/Exiles | Entered Mines 2213 | -8/Mines | Discovered new exit (range 10) 2334 | -8/Mines | Entered Materials 2334 | -8/Materials | Evolved 2 slots: Utility x2 2651 | -8/Materials | Discovered new exit (range 7) 2845 | -8/Materials | Build established: Mutant 2895 | -8/Materials | Entered Factory 2895 | -7/Factory | Evolved 2 slots: Utility x2 3469 | -7/Factory | Discovered new exit (range 11) 3479 | -7/Factory | Identified exit to Factory 3565 | -7/Factory | Entered another Factory area 3565 | -6/Factory | Evolved 2 slots: Propulsion x2 5390 | -6/Factory | Assembled infested ambush trap array 5446 | -6/Factory | Lost 5 parts (1n1u3w) 5702 | -6/Factory | Build established: Scavenger-Mutant 6124 | -6/Factory | Lost 3 parts (3n) 6180 | -6/Factory | Core integrity fell below 50% 6210 | -6/Factory | Lost 4 parts (1n1u2w) 6235 | -6/Factory | Spotted B-75 Beast 6274 | -6/Factory | Discovered new exit (range 10) 6277 | -6/Factory | Identified exit to Factory 6321 | -6/Factory | Entered another Factory area 6321 | -5/Factory | Evolved 2 slots: Propulsion x1, Utility x1 6463 | -5/Factory | Discovered new exit (range 13) 6578 | -5/Factory | Identified exit to Upper Caves 6579 | -5/Factory | Entered Upper Caves 6582 | -5/Upper Caves | Encountered a Warlord checkpoint 6652 | -5/Upper Caves | Build established: Skirmisher 7004 | -5/Upper Caves | Build established: Mutant 7230 | -5/Upper Caves | Lost 11 parts (4n5u2w) 7256 | -5/Upper Caves | Core integrity fell below 50% 7277 | -5/Upper Caves | Learned location of Armory (-3) 7289 | -5/Upper Caves | Lost 4 parts (1p2n1u) 7307 | -5/Upper Caves | Attracted the attention of an 0b10 checkpoint 7345 | -5/Upper Caves | Core integrity fell below 20% 7377 | -5/Upper Caves | Learned location of 1 exit from Factory 7410 | -5/Upper Caves | Learned Factory garrison access intel 7418 | -5/Upper Caves | Discovered new exit (range 9) 7422 | -5/Upper Caves | Identified exit to Upper Caves 7422 | -5/Upper Caves | Entered another Upper Caves area 7506 | -5/Upper Caves | Discovered new exit (range 15) 7512 | -5/Upper Caves | Destroyed by S-27 Virus with Autogun Last Messages --------------- 07380_ Found Hvy. Beamcaster. 07380_ Found Adv. Plasma Cannon. 07388_ Acquired 10 matter. 07393_ Acquired Med. Storage Unit. 07410_ Acquired derelict log, extracted data. Data stored: Factory garrison access intel. 07416_ Acquired Neutrino Core. 07418_ EXIT=FOUND 07422_ EXIT=IDENTIFIED: UPPER CAVES LOCATION=UPPER CAVES GOAL=ESCAPE 07428_ U7-LY7(S) destroyed. 07443_ Searching scrap... 07443_ Found 22 Matter. 07443_ Found Hacking Suite. 07444_ Acquired Hacking Suite. 07446_ Acquired 10 matter. 07484_ Slug penetrates Wall. 07506_ EXIT=FOUND 07507_ Hacking Suite destroyed. Map ----- +----------------------------------------------------+ | #?????????????????????????????##### ##???????? | | #???????????????????????####?## ###?????? | | ##?????????????????????## #?# ##????? | | #?????????????????????# #?# " " ##???? | | #?????????????????????# #?# "" """ #???? | | #???????#????????????## ### "" """" ##??? | | #### ???????????## # " "" ## ##?? | | ?????????## % ## #?? | | ??????????#### ## # #?? | | ????????????????## ## ### #### ##?? | | ????????????##### ### ########??## #??? | | ???????????## ## ### #??????????## #??? | | ???????????# ##????####???# #??? | | ???????????# ## #????## ##?# #??? | | ???????????## ### ##???# ### #??? | | ????????????# ##?# #???# #??? | | ????????????# ##?## #?### #??? | | ????????##### ##?## #### #??## #####??? | | #???????# ## #### ##???# #???## #?????? | | ##??????# ## ######?# #???## #?????? | | ##????## ## ### #??#? ##????## ????? | | ###### ## ## #?????????????? ## #??? | | ## ## s#??????????????? #??#??? | | ##### ###????????????? #?????? | | ######???# s ###???????????!#?????? | | #####????????# @sss #???????????%#?????? | | ##????????????# #??????#?????? | | #??????????# ####### < !#???????????? | | ##????????# #??????#### !%%! ?????????? | | #???????# ##??????????? ! ##?????????? | | #?????# ## ??????????????? ##??????????? | | ### #????# ?###????????????????#???????????? | | ??## ##?????###?????????????????????????????????? | | ???####??????????????????????????????????????????? | | ?????????????????????????????????????????????????? | | ?????????????????????????????????????????????????? | | ?????????????????????????????????????????????????? | | ?????????????????????????????????????????????????? | | ?????????????????????????????????????????????????? | | ?????????????????????????????????????????????????? | | ?????????????????????????????????????????????????? | | ?????????????????????????????????????????????????? | | ?????????????????????????????????????????????????? | | ?????????????????????????????????????????????????? | | ?????????????????????????????????????????????????? | | ?????????????????????????????????????????????????? | | ?????????????????????????????????????????????????? | | ?????????????????????????????????????????????????? | | ?????????????????????????????????????????????????? | | | +----------------------------------------------------+ Best States ------------- Heat Dissipation 59 Coolant Potential 50 Energy Generation 19 Energy Capacity 310 Matter Stores 538 Matter Capacity 550 Sight Range 16 Robot Scan Range 16 Terrain Scan Range 24 Terrain Scan Density 10 Jamming Range 12 Additional Mass Support 12 Armor Coverage 225 Power Shielding 33 Evasion (%) 62 Targeting Accuracy 8 Offensive Hacking 10 Item Schematics ----------------- None Robot Schematics ------------------ None Fabricated ------------ Nothing Alien Tech Used ----------------- None Achievements -------------- I Spy Slippery One Tourist Challenges ------------ None Game ------ Seed HackingFusionAutogun Manual? 0 Play Time 02:12:13 Cumulative 14.4 hours Start 2020.04.06 @ 17:44:06 End 2020.04.06 @ 20:39:36 Sessions 1 Manual Loads 0 Difficulty Rogue Special Mode None Game No. 10 Rogue 10 Adventurer 0 Explorer 0 Win Type - Total 0 Types 0/0/0/0/0/0/0 Lore% 3 Gallery% 16 Achievement% 12 Wizard Run 0 Options --------- ASCII 0 Keyboard 0 Movement Numpad Keybinds 0 Fullscreen 1 Font 20/SmallcapsGlow Map View 66x50 Tactical HUD 1 Map Filters NONE Filters NONE Steam 1 RUN: a239ef5c-4929-42f6-b093-98e124d12bc2